fUSD/lending_fUSD_20251226
["ID","MTS","AMOUNT","RATE_DAILY","PERIOD"]
[399836712,1766722240839,-178.55,0.00016685,2]
[399836713,1766722240849,-178.55,0.00016685,2]
[399836714,1766722240859,-178.57,0.00016685,2]
[399836715,1766722240868,-178.55,0.00016685,2]
[399836716,1766722240878,-178.55,0.00016685,2]
[399836717,1766722240888,-595.37131296,0.00016697,2]
[399836718,1766722240898,-150.0,0.00016699,2]
[399836719,1766722240908,-150.0,0.00016699,2]
[399836720,1766722240918,-500.0,0.00016699,2]
[399836721,1766722240928,-150.0,0.00016699,2]
[399836722,1766722240938,-150.0,0.00016699,2]
[399836723,1766722240948,-150.0,0.00016699,2]
[399836724,1766722240958,-150.0,0.00016699,2]
[399836725,1766722240968,-150.0,0.00016699,2]
[399836726,1766722240978,-150.0,0.00016699,2]
[399836727,1766722240988,-150.0,0.00016699,2]
[399836728,1766722240999,-150.0,0.00016699,2]
[399836729,1766722241009,-500.0,0.00016699,2]
[399836730,1766722241020,-201.1222361,0.00016699,2]
[399836731,1766722241030,-500.0,0.00016699,2]
[399836732,1766722241040,-150.0,0.00016712,2]
[399836733,1766722241050,-150.0,0.00016712,2]
[399836734,1766722241060,-150.0,0.00016712,2]
[399836735,1766722241070,-150.0,0.00016712,2]
[399836736,1766722241080,-150.0,0.00016712,2]
[399836737,1766722241090,-150.0,0.00016712,2]
[399836738,1766722241104,-150.0,0.00016712,2]
[399836739,1766722241115,-150.0,0.00016712,2]
[399836740,1766722241125,-150.52,0.00016712,2]
[399836741,1766722241135,-150.0,0.00016712,2]
[399836742,1766722241145,-150.0,0.00016726,2]
[399836743,1766722241155,-150.0,0.00016726,2]
[399836745,1766722241165,-500.0,0.00016726,2]
[399836746,1766722241176,-150.0,0.00016726,2]
[399836747,1766722241186,-150.0,0.00016726,2]
[399836748,1766722241196,-150.0,0.00016726,2]
[399836749,1766722241206,-150.0,0.00016726,2]
[399836750,1766722241216,-150.0,0.00016726,2]
[399836751,1766722241227,-150.0,0.00016726,2]
[399836752,1766722241237,-150.0,0.00016726,2]
[399836753,1766722241248,-211.21504498,0.00016726,2]
[399836754,1766722241258,-500.0,0.00016726,2]
[399836755,1766722241269,-500.0,0.00016726,2]
[399836756,1766722241279,-1000.0,0.00016731,2]
[399836757,1766722241293,-150.0,0.00016754,2]
[399836758,1766722241304,-500.0,0.00016754,2]
[399836759,1766722241315,-150.0,0.00016754,2]
[399836760,1766722241326,-150.0,0.00016754,2]
[399836761,1766722241336,-206.76955547,0.00016754,2]
[399836762,1766722241346,-150.0,0.00016754,2]
[399836763,1766722241358,-500.0,0.00016754,2]
[399836764,1766722241368,-500.0,0.00016754,2]
[399836765,1766722241377,-150.0,0.00016781,2]
[399836766,1766722241387,-500.0,0.00016781,2]
[399836767,1766722241397,-150.0,0.00016781,2]
[399836768,1766722241407,-150.0,0.00016781,2]
[399836769,1766722241679,-150.0,0.00016781,2]
[399836770,1766722241691,-174.79963008,0.00016809,2]
[399836771,1766722241701,-500.0,0.00016809,2]
[399836772,1766722241711,-150.0,0.00016809,2]
[399836773,1766722241720,-150.0,0.00016809,2]
[399836774,1766722241730,-183.88330882,0.00016809,2]
[399836775,1766722241740,-343.17511814,0.00016836,2]
[399836776,1766722241749,-250.0,0.00016836,2]
[399836777,1766722241759,-250.0,0.00016836,2]
[399836778,1766722241769,-1600.0,0.00016863,2]
[399836779,1766722241782,-200.0,0.00016864,2]
[399836780,1766722241792,-470.0,0.00016881,2]
[399836781,1766722241804,-247.65568554,0.000169,2]
[399836782,1766722241814,-1988.60294266,0.000169,2]
[399836783,1766722241824,-523.41876511,0.000169,2]
[399836784,1766722241835,-195.8450941,0.000169,2]
[399836785,1766722241844,-2317.0,0.000169,2]
[399836786,1766722241854,-152.0,0.0001698,3]
[399836787,1766722241864,-2388.3571237,0.00016993,2]
[399836788,1766722241873,-76575.8848013,0.00016993,2]
[399836789,1766722241884,-4163.3665856,0.00016993,2]
[399836790,1766722241894,-3000.0,0.00016999,2]
[399836791,1766722241904,-307.66104653,0.00016999,2]
[399836792,1766722241914,-1490230.5084305,0.00017,2]
[399836803,1766722242999,-296.35095484,0.00016878,2]
[399836814,1766722245585,-150.61383605,0.00012551,2]
[399836815,1766722245595,-470.0,0.00016502,2]
[399836816,1766722245606,-178.55,0.00016685,2]
[399836817,1766722245617,-173.64904516,0.00016878,2]
[399836818,1766722245627,-896.88721879,0.00017,2]
[399836819,1766722245639,-8860.90657421,0.00017,2]
[399836952,1766722346272,301.29544499,0.000176,30]
[399837037,1766722989609,356.22,0.00012001,2]
[399837053,1766723106075,500.0,0.000119,2]
[399837064,1766723182524,-194.40313991,0.00012084,2]
[399837065,1766723185269,-157.07000795,0.00012084,2]
[399837066,1766723187526,-181.969832,0.00012084,2]
[399837067,1766723189235,-317.14084097,0.00012084,2]
[399837068,1766723191128,-339.76430645,0.00012084,2]
[399837069,1766723194578,-252.27016474,0.00012084,2]
[399837070,1766723197310,-228.1425854,0.00012084,2]
[399837071,1766723200231,999.0,0.00012269,3]
[399837081,1766723347514,-151.059341,0.00012053,2]
[399837082,1766723347538,-82.74812651,0.00012084,2]
[399837096,1766723431725,-112.25187349,0.00012084,2]
[399837097,1766723431736,-250.0,0.00012099,2]
[399837098,1766723431749,-195.0,0.00012099,2]
[399837099,1766723431759,-300.0,0.00012114,2]
[399837100,1766723431768,-1167.12,0.00012307,2]
[399837101,1766723431779,-1000.0,0.00012448,2]
[399837102,1766723431788,-471.07688868,0.00012458,2]
[399837103,1766723431799,-1200.0,0.00012549,2]
[399837104,1766723431809,-300.0,0.0001255,2]
[399837105,1766723431819,-300.0,0.0001255,2]
[399837106,1766723431829,-150.0,0.0001255,2]
[399837107,1766723431838,-151.0,0.00012551,2]
[399837109,1766723431848,-151.0,0.00012551,2]
[399837111,1766723431858,-151.0,0.00012551,2]
[399837113,1766723431868,-151.0,0.00012551,2]
[399837115,1766723431878,-151.0,0.00012551,2]
[399837117,1766723431887,-151.0,0.00012551,2]
[399837119,1766723431897,-151.0,0.00012551,2]
[399837121,1766723431907,-151.0,0.00012551,2]
[399837122,1766723431917,-151.0,0.00012551,2]
[399837124,1766723431927,-151.0,0.00012551,2]
[399837126,1766723431936,-151.0,0.00012551,2]
[399837128,1766723431946,-500.0,0.00012551,2]
[399837130,1766723431956,-500.0,0.00012551,2]
[399837131,1766723431965,-500.0,0.00012551,2]
[399837133,1766723431975,-500.0,0.00012551,2]
[399837135,1766723431985,-500.0,0.00012551,2]
[399837136,1766723431995,-527.72962122,0.00012551,2]
[399837138,1766723432005,-500.0,0.00012557,2]
[399837140,1766723432015,-500.0,0.00012557,2]
[399837142,1766723432025,-158.85195409,0.00012557,2]
[399837144,1766723432034,-27978.45,0.00012557,2]
[399837146,1766723432044,-6622.53,0.00012557,2]
[399837147,1766723432053,-9999.99,0.00012557,2]
[399837149,1766723432063,-9999.99,0.00012557,2]
[399837151,1766723432073,-150.99,0.00012557,2]
[399837153,1766723432084,-734.68,0.00012558,2]
[399837155,1766723432093,-471.07688859,0.00012952,2]
[399837157,1766723432103,-506.01528641,0.00012996,2]
[399837159,1766723432113,-63342.48659354,0.00013036,2]
[399837161,1766723432123,-212.2763019,0.0001305,2]
[399837162,1766723432132,-1099.0,0.00013093,2]
[399837164,1766723432143,-195.0,0.00013259,2]
[399837166,1766723432152,-195.0,0.00013259,2]
[399837168,1766723432163,-11446.12,0.00013261,2]
[399837170,1766723432173,-300.0,0.00013292,2]
[399837172,1766723432183,-250.0,0.00013292,2]
[399837174,1766723432193,-195.0,0.00013292,2]
[399837176,1766723432203,-250.0,0.00013402,2]
[399837177,1766723432213,-471.07688859,0.00013445,2]
[399837179,1766723432224,-300.0,0.0001347,2]
[399837181,1766723432234,-1000.0,0.00013565,2]
[399837183,1766723432243,-1789.74264843,0.00013598,2]
[399837185,1766723432253,-255.0,0.00013641,2]
[399837187,1766723432263,-212.27630189,0.00013692,2]
[399837189,1766723432273,-240.24446594,0.00013698,2]
[399837191,1766723432283,-168.17112615,0.00013698,2]
[399837193,1766723432293,-500.0,0.00013698,2]
[399837195,1766723432303,-509.51648321,0.00013698,2]
[399837197,1766723432313,-500.0,0.00013698,2]
[399837198,1766723432323,-500.0,0.00013698,2]
[399837200,1766723432336,-564.82523099,0.00013698,2]
[399837202,1766723432347,-1000.0,0.00013699,2]
[399837204,1766723432357,-200.0,0.00013699,2]
[399837206,1766723432367,-640.85259249,0.00013699,2]
[399837208,1766723432378,-420.0,0.00013769,2]
[399837210,1766723432388,-420.0,0.00013769,2]
[399837212,1766723432398,-1099.0,0.00013783,2]
[399837214,1766723432409,-1680.0,0.00013804,2]
[399837216,1766723432419,-471.07688859,0.00013939,2]
[399837217,1766723432428,-1789.74264839,0.00013965,2]
[399837219,1766723432438,-2804.03234585,0.00013996,2]
[399837222,1766723432451,-1459.3422069,0.00013996,2]
[399837224,1766723432464,-47.00938656,0.00013996,2]
[399837225,1766723432474,-1789.74264839,0.00014332,2]
[399837227,1766723432484,-212.27630189,0.00014333,2]
[399837229,1766723432494,-471.07688859,0.00014432,2]
[399837231,1766723432504,-1099.0,0.00014508,2]
[399837233,1766723432514,-221.0975397,0.00014592,2]
[399837235,1766723432523,-1789.74264839,0.00014699,2]
[399837236,1766723432534,-180.12508216,0.0001472,2]
[399837238,1766723432543,-300.0,0.00014834,2]
[399837240,1766723432553,-140.72412111,0.00014926,2]
[399837241,1766723432565,-301.29544499,0.00014926,2]
[399837246,1766723437684,-29.05732249,0.00014926,2]
[399837247,1766723437694,-154.88,0.00014954,2]
[399837248,1766723437706,-212.27630189,0.00014975,2]
[399837249,1766723437716,-200.0,0.00014991,2]
[399837250,1766723437727,-151.0,0.00015054,2]
[399837251,1766723437738,-151.0,0.00015058,2]
[399837252,1766723437749,-151.0,0.00015059,2]
[399837253,1766723437759,-1049.11266322,0.00015066,2]
[399837254,1766723437772,-342.16705211,0.00015066,2]
[399837255,1766723437785,-398.46293306,0.00015066,2]
[399837256,1766723437795,-84.58764251,0.00015067,2]
[399837257,1766723437808,-66.41235749,0.00015067,2]
[399837258,1766723437818,-300.0,0.00015107,2]
[399837259,1766723437828,-329.0,0.00015107,2]
[399837260,1766723437838,-1712.0,0.00015184,2]
[399837261,1766723437847,-1099.0,0.00015233,2]
[399837262,1766723437858,-798.07450877,0.0001526,2]
[399837263,1766723437871,-201.92549123,0.0001526,2]
[399837264,1766723437882,-471.07688859,0.00015419,2]
[399837265,1766723437893,-1789.74264839,0.00015432,2]
[399837266,1766723437903,-212.27630189,0.00015617,2]
[399837267,1766723437913,-502.0,0.00015753,2]
[399837268,1766723437922,-1789.74264839,0.00015799,2]
[399837269,1766723437932,-471.07688859,0.00015913,2]
[399837270,1766723437942,-178.55,0.00015978,2]
[399837271,1766723437953,-178.55,0.00015978,2]
[399837272,1766723437962,-1093.81515884,0.00015995,2]
[399837273,1766723437977,-4632.13382587,0.00016,4]
[399837274,1766723438007,-2602.65020963,0.00016,4]
[399837275,1766723438019,-12544.9441137,0.00016,4]
[399837276,1766723438033,-1199.44426882,0.00016,4]
[399837277,1766723438045,-22.22156899,0.00016,4]
[399837278,1766723438056,-287.38434476,0.00016149,2]
[399837279,1766723438068,-212.61565524,0.00016149,2]
[399837280,1766723438079,-500.0,0.00016149,2]
[399837281,1766723438089,-500.0,0.00016149,2]
[399837282,1766723438101,-500.0,0.00016149,2]
[399837284,1766723438112,-21.24742785,0.00016149,2]
[399837286,1766723438125,-478.75257215,0.00016149,2]
[399837288,1766723438135,-500.0,0.00016149,2]
[399837289,1766723438146,-500.0,0.00016149,2]
[399837290,1766723438156,-500.0,0.00016149,2]
[399837291,1766723438167,-294.3051735,0.00016149,2]
[399837292,1766723438180,-205.6948265,0.00016149,2]
[399837293,1766723438190,-500.0,0.00016149,2]
[399837294,1766723438200,-500.0,0.00016149,2]
[399837295,1766723438211,-151.0,0.00016149,2]
[399837296,1766723438221,-574.12855637,0.00016149,2]
[399837297,1766723438232,-322.6107,0.00016149,2]
[399837298,1766723438242,-620.0,0.00016149,2]
[399837299,1766723438254,-763.71903984,0.00016166,2]
[399837300,1766723438272,-450.58499,0.00016166,2]
[399837303,1766723440066,-575.43861855,0.00016166,2]
[399837304,1766723440077,-163.02006394,0.00016183,2]
[399837305,1766723440089,-200.27562112,0.00016183,2]
[399837306,1766723440100,-500.0,0.00016183,2]
[399837307,1766723440110,-819.0,0.00016187,2]
[399837308,1766723440120,-819.0,0.00016195,2]
[399837309,1766723440131,-819.0,0.00016201,2]
[399837310,1766723440142,-212.27630189,0.00016258,2]
[399837311,1766723440152,-819.0,0.00016271,2]
[399837312,1766723440163,-566.84,0.00016278,2]
[399837313,1766723440173,-554.23,0.00016278,2]
[399837314,1766723440183,-554.23,0.00016278,2]
[399837315,1766723440194,-1108.46,0.00016278,2]
[399837316,1766723440204,-554.23,0.00016278,2]
[399837317,1766723440219,-554.23,0.00016278,2]
[399837318,1766723440229,-554.23,0.00016278,2]
[399837319,1766723440239,-554.23,0.00016278,2]
[399837320,1766723440249,-554.23,0.00016278,2]
[399837321,1766723440260,-554.23,0.00016278,2]
[399837322,1766723440275,-558.33,0.00016278,2]
[399837323,1766723440286,-554.23,0.00016278,2]
[399837324,1766723440297,-819.0,0.00016349,2]
[399837325,1766723440308,-819.0,0.00016361,2]
[399837326,1766723440318,-471.07688859,0.00016406,2]
[399837327,1766723440328,-500.0,0.00016438,2]
[399837328,1766723440339,-519.86066017,0.00016438,2]
[399837329,1766723440349,-12862.73,0.00016438,2]
[399837330,1766723440360,-1789.74264839,0.00016533,2]
[399837331,1766723440370,-491.56483272,0.000166,5]
[399837332,1766723440380,-168.0,0.00016631,2]
[399837333,1766723440390,-819.0,0.00016635,2]
[399837334,1766723440400,-670.32096566,0.0001666,2]
[399837335,1766723440412,-357.1,0.00016685,2]
[399837336,1766723440422,-420.65,0.00016685,2]
[399837337,1766723440433,-595.37131296,0.00016697,2]
[399837338,1766723440443,-500.0,0.00016699,2]
[399837339,1766723440453,-500.0,0.00016699,2]
[399837340,1766723440463,-500.0,0.00016699,2]
[399837341,1766723440474,-500.0,0.00016699,2]
[399837342,1766723440484,-150.0,0.00016699,2]
[399837343,1766723440495,-150.0,0.00016699,2]
[399837344,1766723440504,-150.0,0.00016699,2]
[399837345,1766723440515,-500.0,0.00016699,2]
[399837346,1766723440525,-150.0,0.00016699,2]
[399837347,1766723440536,-500.0,0.00016699,2]
[399837348,1766723440547,-500.0,0.00016699,2]
[399837349,1766723440557,-201.1222361,0.00016699,2]
[399837350,1766723440568,-500.0,0.00016699,2]
[399837351,1766723440578,-157.89219015,0.00016699,2]
[399837352,1766723440589,-150.0,0.00016712,2]
[399837353,1766723440599,-150.0,0.00016712,2]
[399837354,1766723440609,-150.0,0.00016712,2]
[399837355,1766723440620,-150.0,0.00016712,2]
[399837356,1766723440639,-150.0,0.00016712,2]
[399837357,1766723440649,-150.0,0.00016712,2]
[399837358,1766723440659,-150.0,0.00016712,2]
[399837360,1766723440670,-150.0,0.00016712,2]
[399837362,1766723440680,-150.0,0.00016712,2]
[399837363,1766723440691,-150.0,0.00016712,2]
[399837364,1766723440701,-150.0,0.00016712,2]
[399837365,1766723440713,-150.0,0.00016712,2]
[399837366,1766723440723,-150.0,0.00016712,2]
[399837367,1766723440734,-150.0,0.00016712,2]
[399837368,1766723440744,-150.0,0.00016712,2]
[399837369,1766723440754,-150.0,0.00016712,2]
[399837370,1766723440764,-500.0,0.00016726,2]
[399837371,1766723440774,-500.0,0.00016726,2]
[399837372,1766723440784,-500.0,0.00016726,2]
[399837373,1766723440794,-500.0,0.00016726,2]
[399837374,1766723440804,-150.0,0.00016726,2]
[399837375,1766723440814,-150.0,0.00016726,2]
[399837376,1766723440827,-150.0,0.00016726,2]
[399837377,1766723440837,-506.76955547,0.00016726,2]
[399837378,1766723440848,-150.0,0.00016726,2]
[399837379,1766723440858,-500.0,0.00016726,2]
[399837380,1766723440869,-500.0,0.00016726,2]
[399837381,1766723440879,-500.0,0.00016726,2]
[399837382,1766723440890,-1000.0,0.00016731,2]
[399837383,1766723440900,-500.0,0.00016754,2]
[399837384,1766723440910,-274.79963008,0.00016754,2]
[399837385,1766723440920,-500.0,0.00016754,2]
[399837386,1766723440929,-500.0,0.00016754,2]
[399837387,1766723440939,-150.0,0.00016754,2]
[399837388,1766723440949,-150.0,0.00016754,2]
[399837389,1766723440959,-150.0,0.00016754,2]
[399837390,1766723440969,-283.88330882,0.00016754,2]
[399837391,1766723440979,-211.21504498,0.00016754,2]
[399837392,1766723440989,-500.0,0.00016754,2]
[399837393,1766723441000,-500.0,0.00016754,2]
[399837394,1766723441011,-500.0,0.00016781,2]
[399837395,1766723441024,-470.0,0.00016787,2]
[399837396,1766723441035,-819.0,0.00016787,2]
[399837397,1766723441045,-500.0,0.00016809,2]
[399837398,1766723441056,-500.0,0.00016836,2]
[399837399,1766723441067,-343.17511814,0.00016863,2]
[399837400,1766723441077,-200.0,0.00016864,2]
[399837401,1766723441087,-470.0,0.00016886,2]
[399837402,1766723441097,-212.27630189,0.000169,2]
[399837403,1766723441107,-471.07688859,0.000169,2]
[399837404,1766723441117,-150.61383604,0.000169,2]
[399837405,1766723441127,-2316.0,0.000169,2]
[399837406,1766723441138,-470.0,0.00016948,2]
[399837407,1766723441148,-1000.0,0.00016956,2]
[399837408,1766723441159,-250.0,0.00016986,5]
[399837409,1766723441169,-1800.0,0.0001699,2]
[399837411,1766723441180,-1136.2544699,0.00016992,2]
[399837412,1766723441189,-2388.3571237,0.00016997,2]
[399837413,1766723441200,-63428.5164646,0.00016997,2]
[399837414,1766723441210,-20898.8782512,0.00016997,2]
[399837415,1766723441220,-16418.0967803,0.00016997,2]
[399837416,1766723441230,-307.66104653,0.00016999,2]
[399837417,1766723441241,-2592258.54284162,0.00017,2]
[399837425,1766723442921,-824.34,0.00015392,2]
[399837426,1766723442932,-1789.74264839,0.000169,2]
[399837427,1766723442943,-513.91725161,0.00017,2]
[399837469,1766723991822,-229.08399187,0.00014896,2]
[399837470,1766723991846,-195.0,0.00014896,2]
[399837472,1766724098982,4575.91600813,0.00014,2]
[399837473,1766724195500,157.96,7.761e-05,2]
[399837474,1766724195725,157.96,8.358e-05,2]
[399837475,1766724195927,157.96,8.955e-05,2]
[399837476,1766724196347,157.96,9.553e-05,2]
[399837477,1766724196426,157.96,0.0001015,2]
[399837478,1766724196615,157.96,0.00010747,2]
[399837479,1766724196812,157.96,0.00011344,2]
[399837480,1766724197011,157.96,0.00011941,2]
[399837481,1766724426670,500.0,0.000119,2]
[399837512,1766724631942,-1000.0,0.00012448,2]
[399837513,1766724631952,-189.407222,0.00012493,2]
[399837514,1766724631965,-5.592778,0.00012493,2]
[399837515,1766724631975,-157.96,0.00012538,2]
[399837516,1766724631990,-157.96,0.00013135,2]
[399837517,1766724631999,-156.63631246,0.00013593,2]
[399837518,1766724632010,-195.0,0.00013693,2]
[399837519,1766724632021,-151.28204893,0.00013693,2]
[399837520,1766724632033,-98.71795107,0.00013693,2]
[399837521,1766724632042,-157.96,0.00013732,2]
[399837522,1766724632052,-394.35135971,0.00013791,2]
[399837523,1766724632069,-805.64864029,0.00013791,2]
[399837524,1766724632078,-300.0,0.00013791,2]
[399837525,1766724632089,-600.0,0.00013792,2]
[399837526,1766724632099,-600.0,0.00013792,2]
[399837527,1766724632108,-600.0,0.00013792,2]
[399837528,1766724632118,-600.0,0.00013792,2]
[399837529,1766724632128,-609.66664121,0.00013792,2]
[399837530,1766724632165,-30.16874177,0.00013792,2]
[399837531,1766724632175,-384.52985974,0.00013792,2]
[399837533,1766724632185,-157.96,0.00014329,2]
[399837535,1766724632195,-1221.792565,0.00014484,2]
[399837536,1766724632204,-166.66,0.00014855,2]
[399837537,1766724632214,-157.96,0.00014926,2]
[399837538,1766724632223,-178.55,0.00015041,2]
[399837540,1766724632234,-277.0,0.00015111,2]
[399837541,1766724632244,-150.99,0.00015167,2]
[399837542,1766724632253,-166.66,0.00015167,2]
[399837544,1766724632263,-180.48499434,0.0001517,2]
[399837545,1766724632279,-413.8620027,0.0001517,2]
[399837548,1766724637838,-605.65300296,0.0001517,2]
[399837549,1766724637849,-166.13417602,0.00015192,2]
[399837550,1766724637894,-792.93265585,0.00015192,2]
[399837551,1766724637950,-11494.63316813,0.00015192,2]
[399837552,1766724637960,-1600.0,0.00015217,2]
[399837553,1766724637970,-166.66,0.0001548,2]
[399837554,1766724637981,-157.96,0.00015523,2]
[399837555,1766724637992,-949.77,0.00015588,2]
[399837556,1766724638002,-500.0,0.0001563,2]
[399837557,1766724638011,-500.0,0.0001563,2]
[399837558,1766724638022,-500.0,0.0001563,2]
[399837559,1766724638032,-500.0,0.0001563,2]
[399837560,1766724638041,-500.0,0.0001563,2]
[399837561,1766724638051,-510.92976223,0.0001563,2]
[399837562,1766724638061,-500.0,0.0001563,2]
[399837563,1766724638072,-500.0,0.0001563,2]
[399837564,1766724638082,-500.0,0.0001563,2]
[399837565,1766724638091,-500.0,0.0001563,2]
[399837566,1766724638101,-500.0,0.0001563,2]
[399837567,1766724638111,-500.0,0.0001563,2]
[399837568,1766724638121,-500.0,0.0001563,2]
[399837569,1766724638131,-67939.04706965,0.00015631,2]
[399837570,1766724638147,-1487.85982699,0.00015631,2]
[399837695,1766724639978,-316.49701509,0.00015631,2]
[399837697,1766724639995,-930256.59608827,0.00015631,2]
[399837699,1766724640004,-151.0,0.00015672,2]
[399837701,1766724640015,-151.0,0.00015673,2]
[399837703,1766724640026,-500.0,0.00015731,2]
[399837705,1766724640036,-150.0,0.00015778,2]
[399837707,1766724640046,-38239.4,0.00015785,2]
[399837709,1766724640056,-166.66,0.00015793,2]
[399837711,1766724640066,-150.0,0.0001589,2]
[399837713,1766724640076,-166.66,0.00016106,2]
[399837715,1766724640086,-969.45,0.00016143,2]
[399837717,1766724640096,-500.0,0.00016149,2]
[399837719,1766724640106,-500.0,0.00016149,2]
[399837721,1766724640115,-500.0,0.00016149,2]
[399837723,1766724640125,-500.0,0.00016149,2]
[399837725,1766724640135,-500.0,0.00016149,2]
[399837727,1766724640145,-500.0,0.00016149,2]
[399837729,1766724640156,-574.12855637,0.00016149,2]
[399837731,1766724640166,-500.0,0.00016149,2]
[399837733,1766724640175,-500.0,0.00016149,2]
[399837735,1766724640185,-500.0,0.00016149,2]
[399837737,1766724640195,-500.0,0.00016149,2]
[399837739,1766724640204,-500.0,0.00016149,2]
[399837741,1766724640214,-151.0,0.00016149,2]
[399837743,1766724640223,-620.0,0.00016149,2]
[399837744,1766724640233,-322.6107,0.00016149,2]
[399837747,1766724640243,-491.81354409,0.00016183,2]
[399837748,1766724640253,-500.0,0.00016183,2]
[399837750,1766724640263,-150.0,0.00016278,2]
[399837752,1766724640273,-168.0,0.00016318,2]
[399837754,1766724640283,-166.66,0.00016418,2]
[399837757,1766724640293,-168.0,0.00016484,2]
[399837758,1766724640303,-150.0,0.00016562,2]
[399837760,1766724640313,-150.0,0.00016562,2]
[399837762,1766724640323,-4526.66,0.0001658,2]
[399837764,1766724640332,-193.17511814,0.00016589,2]
[399837766,1766724640342,-150.0,0.00016589,2]
[399837768,1766724640351,-150.0,0.00016617,2]
[399837770,1766724640361,-335.16048283,0.0001666,2]
[399837772,1766724640370,-1151.0,0.0001666,2]
[399837774,1766724640380,-376.78,0.00016685,2]
[399837776,1766724640390,-595.37131296,0.00016697,2]
[399837778,1766724640399,-150.52,0.00016712,2]
[399837780,1766724640408,-150.0,0.00016712,2]
[399837782,1766724640419,-150.0,0.00016712,2]
[399837784,1766724640429,-150.0,0.00016712,2]
[399837786,1766724640439,-1000.0,0.00016731,2]
[399837788,1766724640448,-166.66,0.00016752,2]
[399837790,1766724640458,-168.0,0.00016762,2]
[399837792,1766724640467,-1183.302,0.00016781,2]
[399837793,1766724640477,-170.31,0.00016781,2]
[399837795,1766724640487,-212.27630189,0.000168,2]
[399837797,1766724640497,-440.68765905,0.000168,2]
[399837799,1766724640506,-192.84380238,0.000168,2]
[399837801,1766724640516,-174.76365263,0.000168,2]
[399837803,1766724640526,-150.61383604,0.000168,2]
[399837805,1766724640536,-440.68765904,0.00016811,2]
[399837808,1766724640546,-440.68765904,0.00016822,2]
[399837809,1766724640555,-440.68765904,0.00016833,2]
[399837811,1766724640565,-440.68765904,0.00016844,2]
[399837813,1766724640574,-440.68765904,0.00016856,2]
[399837815,1766724640583,-200.0,0.00016864,2]
[399837817,1766724640593,-440.68765904,0.00016867,2]
[399837819,1766724640602,-440.68765904,0.00016878,2]
[399837821,1766724640612,-440.68765904,0.00016889,2]
[399837823,1766724640622,-151.0,0.00016897,2]
[399837825,1766724640631,-151.0,0.00016897,2]
[399837827,1766724640641,-2141.24482019,0.000169,2]
[399837829,1766724640650,-1189.4072,0.000169,2]
[399837831,1766724640660,-1000.0,0.000169,2]
[399837833,1766724640670,-440.68765904,0.000169,2]
[399837835,1766724640679,-192.84380237,0.000169,2]
[399837837,1766724640689,-195.241079,0.000169,2]
[399837839,1766724640699,-2308.0,0.000169,2]
[399837841,1766724640708,-351.65,0.00016922,2]
[399837843,1766724640717,-9999.99,0.00016922,2]
[399837845,1766724640727,-168.0,0.00016936,2]
[399837847,1766724640736,-4252.98,0.00016986,2]
[399837849,1766724640745,-80037.9975096,0.00016998,2]
[399837851,1766724640755,-2388.3571237,0.00016998,2]
[399837853,1766724640765,-13599.2620217,0.00016998,2]
[399837855,1766724640775,-4480.7814708,0.00016998,2]
[399837857,1766724640784,-307.66104653,0.00016999,2]
[399837859,1766724640794,-1585486.74106261,0.00017,2]